[Event "1st Chartres GM 2020"]
[Site "Chartres"]
[Date "2020.09.30"]
[Round "2.5"]
[White "Vlachos, Anatole"]
[Black "Stephan, Victor"]
[Result "1/2-1/2"]
[ECO "B23"]
[WhiteElo "2437"]
[BlackElo "2439"]
[Annotator "ChessBase"]
[PlyCount "269"]
[EventDate "2020.09.30"]
[EventType "tourn"]
[EventCountry "FRA"]
[SourceTitle "playchess.com"]
[Source "ChessBase"]
[SourceQuality "1"]
[TimeControl "5400+30"]

1. e4 {[%emt 0:00:00]} c5 {[%emt 0:00:00]} 2. Nc3 {[%emt 0:00:00]} a6 {[%emt 0:00:00]} 3. g3 {[%emt 0:00:00]} b5 {[%emt 0:00:00]} 4. Bg2 {[%emt 0:00:00]} Bb7 {[%emt 0:00:06]} 5. d3 {[%emt 0:00:44]} e6 {[%emt 0:00:40]} 6. f4 {[%emt 0:00:05]} Nf6 {[%emt 0:02:02]} 7. Nh3 {[%emt 0:01:39]} b4 {[%emt 0:08:13]} 8. Ne2 {[%emt 0:01:22]} d5 {[%emt 0:00:15]} 9. e5 {[%emt 0:00:07]} Nfd7 {[%emt 0:00:09]} 10. c3 {[%emt 0:00:20]} Nc6 {[%emt 0:03:31]} 11. d4 {[%emt 0:00:24]} g6 {[%emt 0:07:17]} 12. O-O {[%emt 0:00:29]} Be7 {[%emt 0:00:30]} 13. g4 {[%emt 0:00:51]} Qb6 {[%emt 0:03:33]} 14. Kh1 {[%emt 0:09:39]} h5 {[%emt 0:04:31]} 15. f5 {[%emt 0:05:35]} hxg4 {[%emt 0:04:53]} 16. fxe6 {[%emt 0:00:53]} fxe6 {[%emt 0:00:53]} 17. Ng5 {[%emt 0:08:08]} Nf8 {[%emt 0:02:58]} 18. Ng3 {[%emt 0:11:19]} cxd4 {[%emt 0:05:44]} 19. Qxg4 {[%emt 0:01:09]} Nxe5 {[%emt 0:00:56]} 20. Qf4 {[%emt 0:02:29]} Nd3 {[%emt 0:04:47]} 21. Qf7+ {[%emt 0:00:47]} Kd7 {[%emt 0:00:18]} 22. Qg7 {[%emt 0:03:04]} Rh4 {[%emt 0:03:18]} 23. Rf7 {[%emt 0:09:26]} Re8 {[%emt 0:01:41]} 24. cxd4 {[%emt 0:12:18]} Qxd4 {[%emt 0:03:34]} 25. Qxd4 {[%emt 0:00:27]} Rxd4 {[%emt 0:00:07]} 26. Be3 {[%emt 0:00:03]} Rc4 {[%emt 0:02:08]} 27. b3 {[%emt 0:00:08]} Rc2 {[%emt 0:01:37]} 28. Rd1 {[%emt 0:00:29]} Ne5 {[%emt 0:01:37]} 29. Rg7 {[%emt 0:00:01]} Ng4 {[%emt 0:03:16]} 30. Bg1 {[%emt 0:01:55]} Kc8 {[%emt 0:03:15]} 31. Nf3 {[%emt 0:02:32]} Kb8 {[%emt 0:01:49]} 32. Nd4 {[%emt 0:01:43]} Nf2+ {[%emt 0:01:19]} 33. Bxf2 {[%emt 0:00:02]} Rxf2 {[%emt 0:00:05]} 34. Rg8 {[%emt 0:01:53]} Bc5 {[%emt 0:02:22]} 35. Nc6+ {[%emt 0:02:35]} Bxc6 {[%emt 0:02:22]} 36. Rc1 {[%emt 0:00:02]} Nh7 {[%emt 0:08:30]} 37. Rxg6 {[%emt 0:00:16]} Rxa2 {[%emt 0:01:08]} 38. Rxc5 {[%emt 0:00:03]} Bb5 {[%emt 0:03:49]} 39. h4 {[%emt 0:00:46]} Rf8 {[%emt 0:01:59]} 40. Rc1 {[%emt 0:02:39]} Rff2 {[%emt 0:01:32]} 41. Rg1 {[%emt 0:00:02]} Nf6 {[%emt 0:01:05]} 42. h5 {[%emt 0:01:06]} Bd3 {[%emt 0:01:30]} 43. Rg7 {[%emt 0:01:14]} Ne4 {[%emt 0:03:03]} 44. Kh2 {[%emt 0:02:50]} Rf4 {[%emt 0:00:47]} 45. Nxe4 {[%emt 0:00:07]} Rxe4 {[%emt 0:01:07]} 46. Kg3 {[%emt 0:01:20]} Re5 {[%emt 0:00:05]} 47. Bf3 {[%emt 0:01:30]} Rc2 {[%emt 0:01:13]} 48. h6 {[%emt 0:00:29]} Rc7 {[%emt 0:00:30]} 49. Kf4 {[%emt 0:02:38]} Rf5+ {[%emt 0:00:46]} 50. Ke3 {[%emt 0:00:01]} Rf6 {[%emt 0:00:55]} 51. Kxd3 {[%emt 0:03:22]} Rxh6 {[%emt 0:00:02]} 52. Kd4 {[%emt 0:00:58]} Rh3 {[%emt 0:00:50]} 53. Rg8+ {[%emt 0:01:25]} Ka7 {[%emt 0:00:51]} 54. Bg4 {[%emt 0:00:11]} Rxb3 {[%emt 0:01:15]} 55. Bxe6 {[%emt 0:00:06]} Rb2 {[%emt 0:01:21]} 56. Bxd5 {[%emt 0:01:05]} Rd2+ {[%emt 0:00:31]} 57. Ke5 {[%emt 0:00:06]} Rh7 {[%emt 0:01:42]} 58. Bf3 {[%emt 0:02:19]} Re7+ {[%emt 0:00:15]} 59. Kf4 {[%emt 0:00:37]} Rd6 {[%emt 0:00:36]} 60. Ra8+ {[%emt 0:00:32]} Kb6 {[%emt 0:00:02]} 61. Rb8+ {[%emt 0:00:08]} Ka7 {[%emt 0:00:13]} 62. Rxb4 {[%emt 0:00:44]} Rf6+ {[%emt 0:00:35]} 63. Kg3 {[%emt 0:00:04]} Rg7+ {[%emt 0:00:28]} 64. Bg4 {[%emt 0:00:07]} Rb6 {[%emt 0:00:16]} 65. Rc4 {[%emt 0:00:33]} Rb3+ {[%emt 0:00:41]} 66. Kf4 {[%emt 0:00:25]} Rgb7 {[%emt 0:00:50]} 67. Ke5 {[%emt 0:00:34]} R3b5+ {[%emt 0:00:09]} 68. Kd4 {[%emt 0:00:36]} Rb4 {[%emt 0:00:04]} 69. Be2 {[%emt 0:00:16]} Rd7+ {[%emt 0:00:40]} 70. Kc3 {[%emt 0:00:05]} Rxc4+ {[%emt 0:00:04]} 71. Bxc4 {[%emt 0:00:02]} Rd6 {[%emt 0:00:12]} 72. Kb4 {[%emt 0:00:18]} Rc6 {[%emt 0:00:31]} 73. Bd5 {[%emt 0:00:07]} Rc7 {[%emt 0:00:41]} 74. Rg6 {[%emt 0:00:23]} Rc1 {[%emt 0:01:38]} 75. Rg7+ {[%emt 0:00:02]} Kb8 {[%emt 0:00:07]} 76. Bc4 {[%emt 0:00:05]} a5+ {[%emt 0:00:25]} 77. Kb5 {[%emt 0:00:54]} a4 {[%emt 0:00:09]} 78. Bd5 {[%emt 0:00:42]} a3 {[%emt 0:00:15]} 79. Kb4 {[%emt 0:03:04]} Rd1 {[%emt 0:00:56]} 80. Bb3 {[%emt 0:00:33]} Ra1 {[%emt 0:00:23]} 81. Rg2 {[%emt 0:00:28]} Kc7 {[%emt 0:00:10]} 82. Ba2 {[%emt 0:00:02]} Kd6 {[%emt 0:00:08]} 83. Kxa3 {[%emt 0:00:02]} Ke5 {[%emt 0:00:14]} 84. Kb4 {[%emt 0:00:02]} Rc1 {[%emt 0:00:12]} 85. Bc4 {[%emt 0:00:03]} Kd4 {[%emt 0:00:15]} 86. Rd2+ {[%emt 0:00:01]} Ke3 {[%emt 0:00:13]} 87. Rd8 {[%emt 0:00:17]} Ra1 {[%emt 0:00:33]} 88. Kc5 {[%emt 0:00:08]} Ra5+ {[%emt 0:00:05]} 89. Bb5 {[%emt 0:00:01]} Ra1 {[%emt 0:00:19]} 90. Re8+ {[%emt 0:00:05]} Kf4 {[%emt 0:00:19]} 91. Kd4 {[%emt 0:00:09]} Kf5 {[%emt 0:00:15]} 92. Bd3+ {[%emt 0:00:20]} Kf6 {[%emt 0:00:07]} 93. Rf8+ {[%emt 0:00:02]} Ke7 {[%emt 0:00:17]} 94. Rf3 {[%emt 0:00:26]} Ra5 {[%emt 0:01:10]} 95. Bc4 {[%emt 0:00:07]} Rh5 {[%emt 0:00:10]} 96. Bd5 {[%emt 0:00:37]} Rh4+ {[%emt 0:00:39]} 97. Kc5 {[%emt 0:00:22]} Rh7 {[%emt 0:00:05]} 98. Rf5 {[%emt 0:00:20]} Rg7 {[%emt 0:00:13]} 99. Kd4 {[%emt 0:00:08]} Kd6 {[%emt 0:00:22]} 100. Rf6+ {[%emt 0:00:05]} Ke7 {[%emt 0:00:04]} 101. Re6+ {[%emt 0:00:21]} Kf7 {[%emt 0:01:05]} 102. Ra6+ {[%emt 0:01:10]} Ke7 {[%emt 0:00:08]} 103. Be6 {[%emt 0:00:20]} Rg5 {[%emt 0:00:51]} 104. Ke4 {[%emt 0:00:03]} Rg1 {[%emt 0:00:30]} 105. Bf5 {[%emt 0:00:18]} Re1+ {[%emt 0:00:18]} 106. Kd5 {[%emt 0:00:05]} Kf7 {[%emt 0:00:08]} 107. Be4 {[%emt 0:00:08]} Re3 {[%emt 0:02:53]} 108. Ke5 {[%emt 0:00:07]} Re1 {[%emt 0:00:05]} 109. Ra7+ {[%emt 0:00:05]} Ke8 {[%emt 0:00:05]} 110. Kd5 {[%emt 0:00:15]} Kf8 {[%emt 0:00:02]} 111. Rb7 {[%emt 0:01:07]} Re2 {[%emt 0:00:38]} 112. Bf5 {[%emt 0:00:06]} Re7 {[%emt 0:00:08]} 113. Rb6 {[%emt 0:00:06]} Kf7 {[%emt 0:00:30]} 114. Rb1 {[%emt 0:00:02]} Kf6 {[%emt 0:00:13]} 115. Be4 {[%emt 0:00:10]} Rd7+ {[%emt 0:00:16]} 116. Kc6 {[%emt 0:00:02]} Rd2 {[%emt 0:00:06]} 117. Bd5 {[%emt 0:00:04]} Ke5 {[%emt 0:00:14]} 118. Re1+ {[%emt 0:00:02]} Kf4 {[%emt 0:00:46]} 119. Kd6 {[%emt 0:00:02]} Rf2 {[%emt 0:00:27]} 120. Re4+ {[%emt 0:00:16]} Kf5 {[%emt 0:00:09]} 121. Ra4 {[%emt 0:00:28]} Rd2 {[%emt 0:00:30]} 122. Ra8 {[%emt 0:00:08]} Kf4 {[%emt 0:00:12]} 123. Rf8+ {[%emt 0:00:02]} Ke3 {[%emt 0:00:11]} 124. Ke5 {[%emt 0:00:02]} Rf2 {[%emt 0:00:06]} 125. Ra8 {[%emt 0:00:18]} Rd2 {[%emt 0:00:41]} 126. Rh8 {[%emt 0:00:14]} Kd3 {[%emt 0:00:20]} 127. Rh3+ {[%emt 0:00:07]} Kc2 {[%emt 0:00:06]} 128. Kd6 {[%emt 0:00:30]} Rd4 {[%emt 0:00:24]} 129. Kc5 {[%emt 0:00:02]} Rf4 {[%emt 0:00:09]} 130. Bc4 {[%emt 0:00:11]} Kd2 {[%emt 0:00:17]} 131. Rd3+ {[%emt 0:00:12]} Ke1 {[%emt 0:00:17]} 132. Rh3 {[%emt 0:00:17]} Kd2 {[%emt 0:00:06]} 133. Bd5 {[%emt 0:00:18]} Ke2 {[%emt 0:00:14]} 134. Kd6 {[%emt 0:00:05]} Kd2 {[%emt 0:00:06]} 135. Ke5 {[%emt 0:00:31]} 1/2-1/2

[Event "1st Chartres GM 2020"]
[Site "Chartres"]
[Date "2020.10.01"]
[Round "3.1"]
[White "Lamard, Guillaume"]
[Black "Dardha, Daniel"]
[Result "0-1"]
[ECO "B23"]
[WhiteElo "2486"]
[BlackElo "2468"]
[Annotator "ChessBase"]
[PlyCount "34"]
[EventDate "2020.09.30"]
[EventType "tourn"]
[EventCountry "FRA"]
[SourceTitle "playchess.com"]
[Source "ChessBase"]
[SourceQuality "1"]
[TimeControl "5400+30"]

1. e4 {[%emt 0:00:00]} c5 {[%emt 0:00:00]} 2. Nc3 {[%emt 0:00:00]} g6 {[%emt 0:00:36]} 3. Bc4 {[%emt 0:04:40]} Bg7 {[%emt 0:00:34]} 4. d3 {[%emt 0:05:05]} Nc6 {[%emt 0:00:23]} 5. a3 {[%emt 0:01:10]} e6 {[%emt 0:01:10]} 6. Nf3 {[%emt 0:02:36]} Nge7 {[%emt 0:01:09]} 7. O-O {[%emt 0:00:05]} d5 {[%emt 0:01:38]} 8. exd5 {[%emt 0:02:26]} exd5 {[%emt 0:00:44]} 9. Ba2 {[%emt 0:00:05]} h6 {[%emt 0:00:52]} 10. Re1 {[%emt 0:04:02]} O-O {[%emt 0:00:22]} 11. Bf4 {[%emt 0:01:36]} g5 {[%emt 0:07:34]} 12. Bg3 {[%emt 0:00:08]} Bg4 {[%emt 0:00:51]} 13. h3 {[%emt 0:10:05]} Bh5 {[%emt 0:00:05]} 14. Bh2 {[%emt 0:00:06]} f5 {[%emt 0:02:47]} 15. g4 {[%emt 0:04:47]} fxg4 {[%emt 0:00:31]} 16. Ne5 {[%emt 0:02:30]} g3 {[%emt 0:02:30]} 17. Qxh5 {[%emt 0:01:11]} gxh2+ {[%emt 0:00:20]} 0-1

[Event "1st Chartres GM 2020"]
[Site "Chartres"]
[Date "2020.10.01"]
[Round "3.2"]
[White "Stephan, Victor"]
[Black "Maurizzi, Marc Andria"]
[Result "0-1"]
[ECO "E46"]
[WhiteElo "2439"]
[BlackElo "2433"]
[Annotator "ChessBase"]
[PlyCount "68"]
[EventDate "2020.09.30"]
[EventType "tourn"]
[EventCountry "FRA"]
[SourceTitle "playchess.com"]
[Source "ChessBase"]
[SourceQuality "1"]
[TimeControl "5400+30"]

1. d4 {[%emt 0:00:00]} Nf6 {[%emt 0:00:00]} 2. c4 {[%emt 0:00:00]} e6 {[%emt 0:00:00]} 3. Nc3 {[%emt 0:00:37]} Bb4 {[%emt 0:00:00]} 4. e3 {[%emt 0:00:28]} O-O {[%emt 0:00:02]} 5. Nge2 {[%emt 0:00:06]} c6 {[%emt 0:00:28]} 6. a3 {[%emt 0:01:24]} Ba5 {[%emt 0:00:05]} 7. Ng3 {[%emt 0:00:08]} d5 {[%emt 0:00:55]} 8. Bd3 {[%emt 0:00:23]} dxc4 {[%emt 0:03:21]} 9. Bxc4 {[%emt 0:00:10]} Nbd7 {[%emt 0:00:07]} 10. O-O {[%emt 0:02:55]} e5 {[%emt 0:01:40]} 11. Ba2 {[%emt 0:02:09]} Bc7 {[%emt 0:08:17]} 12. Qf3 {[%emt 0:04:47]} Nb6 {[%emt 0:17:00]} 13. Nge4 {[%emt 0:05:44]} Nxe4 {[%emt 0:01:38]} 14. Nxe4 {[%emt 0:00:54]} exd4 {[%emt 0:03:37]} 15. exd4 {[%emt 0:00:37]} Qxd4 {[%emt 0:04:12]} 16. Re1 {[%emt 0:06:05]} Qe5 {[%emt 0:13:23]} 17. Qg3 {[%emt 0:06:45]} Qxg3 {[%emt 0:02:54]} 18. hxg3 {[%emt 0:00:10]} Nd5 {[%emt 0:08:52]} 19. Bd2 {[%emt 0:08:20]} Bf5 {[%emt 0:05:55]} 20. Rac1 {[%emt 0:04:25]} Rad8 {[%emt 0:04:11]} 21. Bg5 {[%emt 0:03:22]} f6 {[%emt 0:00:22]} 22. Nc3 {[%emt 0:03:17]} Bb6 {[%emt 0:02:42]} 23. Be3 {[%emt 0:01:10]} Bxe3 {[%emt 0:02:07]} 24. Rxe3 {[%emt 0:00:22]} Rd7 {[%emt 0:03:10]} 25. Bb3 {[%emt 0:12:14]} Rfd8 {[%emt 0:04:04]} 26. Nxd5 {[%emt 0:01:12]} cxd5 {[%emt 0:00:07]} 27. Ba4 {[%emt 0:00:04]} Rf7 {[%emt 0:04:07]} 28. Be8 {[%emt 0:03:27]} Rf8 {[%emt 0:00:06]} 29. Ba4 {[%emt 0:00:03]} Bd7 {[%emt 0:02:01]} 30. Re7 {[%emt 0:01:21]} Bxa4 {[%emt 0:00:47]} 31. Rcc7 {[%emt 0:00:04]} Kh8 {[%emt 0:00:14]} 32. Rxg7 {[%emt 0:03:27]} Bc2 {[%emt 0:00:02]} 33. Rge7 {[%emt 0:00:19]} Bg6 {[%emt 0:00:31]} 34. Rxb7 {[%emt 0:00:07]} d4 {[%emt 0:00:21]} 0-1

[Event "1st Chartres GM 2020"]
[Site "Chartres"]
[Date "2020.10.01"]
[Round "3.3"]
[White "Duboue, Peio"]
[Black "Vlachos, Anatole"]
[Result "1-0"]
[ECO "C45"]
[WhiteElo "2439"]
[BlackElo "2437"]
[Annotator "ChessBase"]
[PlyCount "61"]
[EventDate "2020.09.30"]
[EventType "tourn"]
[EventCountry "FRA"]
[SourceTitle "playchess.com"]
[Source "ChessBase"]
[SourceQuality "1"]
[TimeControl "5400+30"]

1. e4 {[%emt 0:00:00]} e5 {[%emt 0:00:00]} 2. Nf3 {[%emt 0:00:00]} Nc6 {[%emt 0:00:00]} 3. d4 {[%emt 0:00:00]} exd4 {[%emt 0:00:00]} 4. Nxd4 {[%emt 0:00:03]} Bc5 {[%emt 0:00:00]} 5. Be3 {[%emt 0:00:03]} Qf6 {[%emt 0:00:00]} 6. c3 {[%emt 0:00:02]} Nge7 {[%emt 0:00:03]} 7. g3 {[%emt 0:00:12]} d5 {[%emt 0:00:04]} 8. Bg2 {[%emt 0:00:04]} dxe4 {[%emt 0:00:04]} 9. O-O {[%emt 0:00:05]} Bxd4 {[%emt 0:00:13]} 10. cxd4 {[%emt 0:00:05]} Bf5 {[%emt 0:00:04]} 11. Nc3 {[%emt 0:00:03]} O-O-O {[%emt 0:01:02]} 12. f3 {[%emt 0:00:27]} Nxd4 {[%emt 0:07:19]} 13. fxe4 {[%emt 0:03:26]} Qe5 {[%emt 0:00:16]} 14. Qa4 {[%emt 0:05:48]} Be6 {[%emt 0:07:35]} 15. Qxa7 {[%emt 0:03:28]} Nec6 {[%emt 0:00:06]} 16. Qa8+ {[%emt 0:01:11]} Kd7 {[%emt 0:05:09]} 17. Qxb7 {[%emt 0:06:23]} Rb8 {[%emt 0:02:29]} 18. Qa6 {[%emt 0:00:08]} Rxb2 {[%emt 0:01:32]} 19. Rad1 {[%emt 0:02:22]} Rb4 {[%emt 0:13:21]} 20. Rf2 {[%emt 0:14:20]} Rd8 {[%emt 0:04:02]} 21. Bf4 {[%emt 0:07:21]} Qc5 {[%emt 0:02:34]} 22. Nd5 {[%emt 0:00:20]} Rc4 {[%emt 0:19:31]} 23. Bxc7 {[%emt 0:08:21]} Ne2+ {[%emt 0:18:42]} 24. Kf1 {[%emt 0:01:40]} Ncd4 {[%emt 0:00:01]} 25. Bb6 {[%emt 0:21:02]} Rc1 {[%emt 0:00:38]} 26. Qa4+ {[%emt 0:00:38]} Qc6 {[%emt 0:00:45]} 27. Qa7+ {[%emt 0:06:29]} Kd6 {[%emt 0:00:02]} 28. Qe7+ {[%emt 0:00:10]} Ke5 {[%emt 0:00:02]} 29. Qg5+ {[%emt 0:00:14]} f5 {[%emt 0:00:44]} 30. Qxg7+ {[%emt 0:00:12]} Kd6 {[%emt 0:00:03]} 31. e5# {[%emt 0:20:53]} 1-0

[Event "1st Chartres GM 2020"]
[Site "Chartres"]
[Date "2020.10.01"]
[Round "3.4"]
[White "Fedorchuk, Sergey A."]
[Black "Loiseau, Quentin"]
[Result "1-0"]
[ECO "B83"]
[WhiteElo "2615"]
[BlackElo "2457"]
[Annotator "ChessBase"]
[PlyCount "71"]
[EventDate "2020.09.30"]
[EventType "tourn"]
[EventCountry "FRA"]
[SourceTitle "playchess.com"]
[Source "ChessBase"]
[SourceQuality "1"]
[TimeControl "5400+30"]

1. e4 {[%emt 0:00:00]} c5 {[%emt 0:00:00]} 2. Nf3 {[%emt 0:00:00]} e6 {[%emt 0:00:00]} 3. d4 {[%emt 0:00:09]} cxd4 {[%emt 0:00:00]} 4. Nxd4 {[%emt 0:00:06]} Nf6 {[%emt 0:00:00]} 5. Nc3 {[%emt 0:00:10]} Nc6 {[%emt 0:00:04]} 6. a3 {[%emt 0:03:38]} d6 {[%emt 0:07:46]} 7. Be3 {[%emt 0:08:20]} Be7 {[%emt 0:00:52]} 8. Be2 {[%emt 0:07:29]} O-O {[%emt 0:01:52]} 9. O-O {[%emt 0:00:08]} e5 {[%emt 0:18:41]} 10. Nf3 {[%emt 0:02:12]} h6 {[%emt 0:05:40]} 11. Bc4 {[%emt 0:01:05]} Be6 {[%emt 0:02:52]} 12. Qd3 {[%emt 0:06:05]} Rc8 {[%emt 0:01:28]} 13. Nd5 {[%emt 0:14:47]} Qd7 {[%emt 0:29:22]} 14. Rad1 {[%emt 0:11:36]} Rfd8 {[%emt 0:00:16]} 15. h3 {[%emt 0:04:04]} Rb8 {[%emt 0:10:45]} 16. Rfe1 {[%emt 0:02:53]} Kf8 {[%emt 0:04:42]} 17. b4 {[%emt 0:03:00]} b5 {[%emt 0:06:12]} 18. Bb3 {[%emt 0:05:56]} Qb7 {[%emt 0:03:46]} 19. Nd2 {[%emt 0:07:48]} Rbc8 {[%emt 0:00:59]} 20. c4 {[%emt 0:03:25]} bxc4 {[%emt 0:00:32]} 21. Bxc4 {[%emt 0:00:27]} Nb8 {[%emt 0:00:31]} 22. Nxf6 {[%emt 0:02:17]} Bxf6 {[%emt 0:00:35]} 23. Rc1 {[%emt 0:03:22]} Bxc4 {[%emt 0:04:01]} 24. Nxc4 {[%emt 0:00:20]} Qa6 {[%emt 0:00:32]} 25. Qd5 {[%emt 0:01:16]} Be7 {[%emt 0:00:07]} 26. Rc3 {[%emt 0:03:58]} Nd7 {[%emt 0:00:20]} 27. b5 {[%emt 0:00:23]} Qa4 {[%emt 0:00:21]} 28. Nxd6 {[%emt 0:00:10]} Bxd6 {[%emt 0:00:30]} 29. Qxd6+ {[%emt 0:00:06]} Ke8 {[%emt 0:00:03]} 30. Rec1 {[%emt 0:06:03]} Rxc3 {[%emt 0:00:36]} 31. Rxc3 {[%emt 0:00:03]} Qxb5 {[%emt 0:00:30]} 32. Rc7 {[%emt 0:00:31]} Qb1+ {[%emt 0:01:23]} 33. Kh2 {[%emt 0:00:06]} Qxe4 {[%emt 0:00:39]} 34. Bc5 {[%emt 0:00:16]} Qf4+ {[%emt 0:00:12]} 35. g3 {[%emt 0:00:21]} Qf6 {[%emt 0:00:15]} 36. Rxd7 {[%emt 0:00:13]} 1-0

[Event "1st Chartres GM 2020"]
[Site "Chartres"]
[Date "2020.10.01"]
[Round "3.5"]
[White "Guliyev, Namig"]
[Black "David, Alberto"]
[Result "1/2-1/2"]
[ECO "B17"]
[WhiteElo "2529"]
[BlackElo "2520"]
[Annotator "ChessBase"]
[PlyCount "43"]
[EventDate "2020.09.30"]
[EventType "tourn"]
[EventCountry "FRA"]
[SourceTitle "playchess.com"]
[Source "ChessBase"]
[SourceQuality "1"]
[TimeControl "5400+30"]

1. e4 {[%emt 0:01:07]} c6 {[%emt 0:00:00]} 2. d4 {[%emt 0:00:18]} d5 {[%emt 0:00:00]} 3. Nc3 {[%emt 0:01:35]} dxe4 {[%emt 0:00:19]} 4. Nxe4 {[%emt 0:00:10]} Nd7 {[%emt 0:01:15]} 5. Nf3 {[%emt 0:01:33]} Ngf6 {[%emt 0:00:30]} 6. Nxf6+ {[%emt 0:00:16]} Nxf6 {[%emt 0:00:07]} 7. c3 {[%emt 0:01:03]} Bg4 {[%emt 0:02:51]} 8. h3 {[%emt 0:00:51]} Bxf3 {[%emt 0:00:27]} 9. Qxf3 {[%emt 0:00:10]} e6 {[%emt 0:00:14]} 10. g3 {[%emt 0:03:01]} Qd5 {[%emt 0:01:37]} 11. Bg2 {[%emt 0:00:13]} Be7 {[%emt 0:01:56]} 12. O-O {[%emt 0:00:21]} Qxf3 {[%emt 0:00:09]} 13. Bxf3 {[%emt 0:00:08]} O-O {[%emt 0:00:14]} 14. c4 {[%emt 0:03:52]} Rfd8 {[%emt 0:00:55]} 15. Rd1 {[%emt 0:00:17]} Rd7 {[%emt 0:01:35]} 16. Be3 {[%emt 0:00:14]} Bd8 {[%emt 0:09:07]} 17. Rd3 {[%emt 0:02:55]} Bb6 {[%emt 0:06:01]} 18. Rad1 {[%emt 0:00:15]} Rad8 {[%emt 0:00:05]} 19. Be2 {[%emt 0:00:57]} h6 {[%emt 0:02:04]} 20. Kg2 {[%emt 0:00:35]} Kf8 {[%emt 0:03:19]} 21. b3 {[%emt 0:00:34]} Ke7 {[%emt 0:01:12]} 22. h4 {[%emt 0:01:29]} 1/2-1/2

[Event "1st Chartres GM 2020"]
[Site "Chartres"]
[Date "2020.10.01"]
[Round "4.2"]
[White "Duboue, Peio"]
[Black "Guliyev, Namig"]
[Result "1/2-1/2"]
[ECO "C41"]
[WhiteElo "2439"]
[BlackElo "2529"]
[Annotator "ChessBase"]
[PlyCount "22"]
[EventDate "2020.09.30"]
[EventType "tourn"]
[EventCountry "FRA"]
[SourceTitle "playchess.com"]
[Source "ChessBase"]
[SourceQuality "1"]
[TimeControl "5400+30"]

1. e4 {[%emt 0:00:00]} e5 {[%emt 0:00:00]} 2. Nf3 {[%emt 0:00:00]} Nf6 {[%emt 0:00:00]} 3. Nc3 {[%emt 0:00:00]} d6 {[%emt 0:03:09]} 4. d4 {[%emt 0:00:29]} Nbd7 {[%emt 0:00:07]} 5. g3 {[%emt 0:02:24]} Be7 {[%emt 0:00:27]} 6. Bg2 {[%emt 0:00:05]} O-O {[%emt 0:00:07]} 7. O-O {[%emt 0:04:09]} c6 {[%emt 0:00:09]} 8. a4 {[%emt 0:05:43]} Qc7 {[%emt 0:01:10]} 9. h3 {[%emt 0:01:25]} Re8 {[%emt 0:01:13]} 10. Re1 {[%emt 0:05:14]} b6 {[%emt 0:04:44]} 11. Kh2 {[%emt 0:06:44]} a6 {[%emt 0:00:21]} 1/2-1/2

[Event "1st Chartres GM 2020"]
[Site "Chartres"]
[Date "2020.10.01"]
[Round "4.3"]
[White "Vlachos, Anatole"]
[Black "Maurizzi, Marc Andria"]
[Result "0-1"]
[ECO "A03"]
[WhiteElo "2437"]
[BlackElo "2433"]
[Annotator "ChessBase"]
[PlyCount "70"]
[EventDate "2020.09.30"]
[EventType "tourn"]
[EventCountry "FRA"]
[SourceTitle "playchess.com"]
[Source "ChessBase"]
[SourceQuality "1"]
[TimeControl "5400+30"]

1. f4 {[%emt 0:00:00]} d5 {[%emt 0:00:00]} 2. Nf3 {[%emt 0:00:00]} Nf6 {[%emt 0:00:00]} 3. g3 {[%emt 0:00:00]} e6 {[%emt 0:00:00]} 4. Bg2 {[%emt 0:00:00]} Be7 {[%emt 0:00:32]} 5. O-O {[%emt 0:00:00]} O-O {[%emt 0:00:04]} 6. d3 {[%emt 0:00:45]} b5 {[%emt 0:00:04]} 7. Ne5 {[%emt 0:07:00]} Bb7 {[%emt 0:03:54]} 8. a4 {[%emt 0:00:00]} b4 {[%emt 0:00:15]} 9. a5 {[%emt 0:00:00]} c5 {[%emt 0:01:35]} 10. e4 {[%emt 0:00:00]} Nfd7 {[%emt 0:07:49]} 11. exd5 {[%emt 0:02:53]} exd5 {[%emt 0:03:05]} 12. Ng4 {[%emt 0:08:14]} Na6 {[%emt 0:07:49]} 13. f5 {[%emt 0:02:26]} Nf6 {[%emt 0:04:24]} 14. Nd2 {[%emt 0:04:22]} Nxg4 {[%emt 0:08:37]} 15. Qxg4 {[%emt 0:00:03]} Bf6 {[%emt 0:00:10]} 16. Nf3 {[%emt 0:00:30]} b3 {[%emt 0:08:45]} 17. c3 {[%emt 0:06:56]} d4 {[%emt 0:00:59]} 18. cxd4 {[%emt 0:00:33]} cxd4 {[%emt 0:06:34]} 19. Qh5 {[%emt 0:01:06]} Nc5 {[%emt 0:10:13]} 20. g4 {[%emt 0:03:10]} Nxd3 {[%emt 0:05:59]} 21. Ng5 {[%emt 0:10:50]} Bxg5 {[%emt 0:00:22]} 22. Bxg5 {[%emt 0:00:16]} Qd7 {[%emt 0:00:09]} 23. Qh3 {[%emt 0:12:18]} Bxg2 {[%emt 0:00:49]} 24. Qxg2 {[%emt 0:00:11]} Rac8 {[%emt 0:05:12]} 25. Qg3 {[%emt 0:00:02]} Nc5 {[%emt 0:00:54]} 26. f6 {[%emt 0:04:54]} Rfe8 {[%emt 0:02:07]} 27. Rae1 {[%emt 0:00:02]} Ne4 {[%emt 0:03:57]} 28. Qf4 {[%emt 0:05:07]} Qd5 {[%emt 0:00:22]} 29. h4 {[%emt 0:00:01]} d3 {[%emt 0:01:44]} 30. fxg7 {[%emt 0:00:58]} d2 {[%emt 0:04:12]} 31. Rd1 {[%emt 0:00:02]} Nxg5 {[%emt 0:02:15]} 32. hxg5 {[%emt 0:00:36]} Re2 {[%emt 0:01:14]} 33. Qg3 {[%emt 0:02:16]} Rce8 {[%emt 0:01:37]} 34. a6 {[%emt 0:01:24]} R8e3 {[%emt 0:00:26]} 35. Qe5 {[%emt 0:00:07]} Qg2# {[%emt 0:00:07]} 0-1